bitfinex/quotes_ETHUSD_20251118
["timestamp","ask_amount","ask_price","bid_price","bid_amount"]
[1763451124575,9.53514898,3013.9,3013.2,0.4699]
[1763451124576,0.285,3013.7,3013.2,0.4699]
[1763451125568,9.00769748,3014.3,3013.6,0.4596]
[1763451125729,0.285,3014.2,3013.6,0.4596]
[1763451126117,1.19199264,3014.2,3013.6,0.4596]
[1763451126336,0.4699,3014.9,3013.6,0.4596]
[1763451126337,1.30496901,3014.1,3013.7,0.4984]
[1763451126556,0.285,3014.0,3013.7,0.4984]
[1763451126752,0.285,3013.9,3013.7,0.4984]
[1763451126955,0.285,3013.9,3013.2,0.4984]
[1763451127366,0.285,3013.8,3013.2,0.4984]
[1763451127875,0.99146901,3014.1,3013.2,0.4984]
[1763451128085,0.285,3014.0,3013.2,0.4984]
[1763451128371,0.285,3014.0,3013.1,0.191]
[1763451128372,0.90699264,3013.8,3013.1,0.001]
[1763451128576,0.43675224,3013.7,3013.1,0.001]
[1763451128949,0.285,3013.6,3013.1,0.001]
[1763451129769,0.90699264,3013.4,3013.1,0.001]
[1763451130635,0.43675224,3013.7,3013.1,0.001]
[1763451130636,0.43675224,3013.7,3013.3,0.4601]
[1763451130996,0.43675224,3013.7,3013.2,0.4984]
[1763451130997,9.00769748,3014.9,3013.6,0.4601]
[1763451131276,9.00769748,3014.9,3014.3,0.1864]
[1763451131435,9.00769748,3015.3,3014.3,0.1864]
[1763451131647,9.00769748,3015.7,3014.3,0.6848]
[1763451131991,0.002,3014.7,3014.4,0.1864]
[1763451132193,0.285,3014.6,3014.4,0.6848]
[1763451132528,0.285,3014.6,3014.5,0.9585]
[1763451135173,0.002,3014.7,3014.5,0.9585]
[1763451135361,0.002,3014.7,3014.4,0.1864]
[1763451135564,0.285,3014.6,3014.4,0.1864]
[1763451135790,0.002,3015.0,3014.4,0.1864]
[1763451135791,0.002,3015.0,3014.6,0.4601]
[1763451136070,0.285,3016.9,3014.9,0.4601]
[1763451136273,0.90699264,3016.5,3014.9,0.4601]
[1763451136571,0.90699264,3016.5,3015.0,0.4984]
[1763451137079,0.90699264,3016.5,3015.1,0.1864]
[1763451137435,0.90699264,3016.5,3015.2,0.4984]
[1763451137732,9.00769748,3016.6,3015.2,0.4984]
[1763451137937,1.18576975,3016.5,3015.2,0.4984]
[1763451138157,0.285,3016.4,3015.2,0.4984]
[1763451138836,9.00769748,3017.4,3016.3,0.6465]
[1763451139168,0.59318416,3017.3,3016.4,0.4984]
[1763451139370,0.285,3017.3,3016.4,0.4984]
[1763451140654,0.285,3017.3,3016.3,0.1864]
[1763451140655,0.90699264,3016.9,3016.0,0.1855]
[1763451140970,1.27646901,3016.8,3016.0,0.1855]
[1763451141169,3.30299264,3016.7,3016.0,0.1855]
[1763451141372,0.90699264,3016.5,3015.1,0.1864]
[1763451141545,0.90699264,3016.5,3015.2,0.4881]
[1763451141881,0.90699264,3016.1,3015.2,0.4881]
[1763451142036,0.285,3016.0,3015.2,0.4881]
[1763451142229,0.90699264,3016.5,3015.2,0.4881]
[1763451142480,0.285,3016.4,3015.2,0.4881]
[1763451142633,0.90699264,3016.5,3015.2,0.4881]
[1763451142870,1.27646901,3016.4,3015.2,0.4881]
[1763451143071,0.285,3016.4,3015.2,0.4881]
[1763451144873,0.90699264,3016.5,3015.2,0.4881]
[1763451145273,0.285,3016.4,3015.2,0.4881]
[1763451145706,0.405504,3016.8,3015.3,0.03316419]
[1763451145920,0.285,3016.7,3015.2,0.4881]
[1763451146075,0.90076975,3017.0,3015.3,0.405504]
[1763451146271,0.285,3016.9,3015.5,0.405504]
[1763451146736,9.00769748,3017.4,3015.6,0.4881]
[1763451146914,9.00769748,3017.8,3015.6,0.52126089]
[1763451147240,0.90076975,3017.7,3015.7,0.405504]
[1763451147438,0.285,3017.6,3015.9,0.405504]
[1763451147637,0.285,3017.6,3015.6,0.4881]
[1763451147638,0.285,3017.6,3015.7,0.405504]
[1763451147851,0.285,3017.6,3015.7,0.92676379]
[1763451148205,0.285,3017.6,3015.9,0.405504]
[1763451148607,0.285,3017.6,3015.7,0.03315979]
[1763451148608,0.285,3017.6,3016.1,0.405504]
[1763451148837,0.285,3017.6,3016.0,0.4881]
[1763451149336,9.82951946,3018.1,3016.0,0.4881]
[1763451149337,0.002,3016.9,3016.0,0.4881]
[1763451149505,0.285,3016.8,3016.0,0.4881]
[1763451150837,0.002,3016.9,3016.7,0.4723]
[1763451151025,0.002,3017.3,3016.8,0.4723]
[1763451151339,0.002,3017.3,3017.2,0.6578]
[1763451151636,1.482,3017.3,3017.2,1.1459]
[1763451152351,1.482,3017.3,3017.2,0.1855]
[1763451152507,1.482,3017.3,3016.9,0.4881]
[1763451152508,0.285,3017.3,3017.0,0.1855]
[1763451152815,0.285,3017.2,3017.0,0.1855]
[1763451153225,0.285,3017.2,3017.1,0.9604]
[1763451153526,0.285,3017.2,3017.1,0.4723]
[1763451154205,0.002,3017.6,3017.1,0.9604]
[1763451154413,0.002,3017.6,3017.5,0.4723]
[1763451154811,0.002,3017.6,3017.5,0.9604]
[1763451155013,0.287,3017.6,3017.5,0.9604]
[1763451155540,0.002,3017.6,3017.5,0.9604]
[1763451155838,0.287,3017.6,3017.5,0.9604]
[1763451156009,1.287,3017.6,3017.5,0.9604]
[1763451157437,1.002,3017.6,3017.5,0.9604]
[1763451157660,1.286,3017.6,3017.5,0.9604]
[1763451158752,1.286,3017.6,3017.5,1.365904]
[1763451158753,1.0,3017.6,3017.5,1.365904]
[1763451158919,0.1371,3019.7,3017.6,0.405504]
[1763451159108,0.284,3019.6,3019.2,0.1832]
[1763451159311,0.284,3019.6,3019.0,0.1832]
[1763451159963,0.284,3019.6,3018.0,0.1832]
[1763451160110,0.1373,3019.1,3018.0,0.1832]
[1763451160320,0.284,3019.0,3018.0,0.1832]
[1763451160620,0.284,3019.0,3017.6,0.900204]
[1763451160621,0.90699264,3018.6,3017.7,0.1832]
[1763451160824,0.94240155,3018.5,3017.7,0.1832]
[1763451161032,0.284,3018.4,3017.4,0.1832]
[1763451161218,0.284,3018.4,3017.1,0.1832]
[1763451161219,2.10399264,3018.3,3017.1,0.1832]
[1763451161418,1.197,3018.3,3017.1,0.1832]
[1763451161647,1.197,3018.3,3017.1,0.6779]
[1763451161812,0.30893,3018.2,3017.1,0.6779]
[1763451163755,0.30893,3018.2,3017.1,0.1832]
[1763451163914,2.394,3018.1,3017.2,0.4947]
[1763451164110,0.284,3018.0,3017.2,0.4947]
[1763451164532,0.284,3018.0,3017.1,4.0832]
[1763451164533,0.1371,3017.9,3017.1,0.1832]
[1763451164743,0.1371,3017.9,3016.0,0.90699264]
[1763451164744,0.5484,3017.9,3016.6,0.1832]
[1763451164929,0.90699264,3017.6,3016.6,0.1832]
[1763451165113,0.90699264,3017.6,3016.4,0.6779]
[1763451165326,0.6953,3017.5,3016.4,0.1832]
[1763451165865,0.284,3017.5,3016.4,0.1832]
[1763451166030,0.4113,3017.4,3016.4,0.1832]
[1763451166362,0.284,3017.5,3016.4,0.1832]
[1763451166363,0.284,3017.3,3016.5,0.4947]
[1763451166574,0.17393926,3017.8,3016.5,0.4947]
[1763451166875,0.284,3017.7,3016.6,0.0331499]
[1763451167182,0.002,3017.6,3016.6,0.0331499]
[1763451167329,0.284,3017.5,3016.7,0.900204]
[1763451167532,0.284,3017.5,3017.4,0.6759]
[1763451168036,0.284,3017.5,3017.4,1.1706]
[1763451169064,0.002,3017.6,3017.4,1.1706]
[1763451169266,0.284,3017.5,3017.4,0.1832]
[1763451169666,0.284,3017.5,3017.4,0.6759]
[1763451169964,0.002,3017.6,3017.4,1.1706]
[1763451170163,0.284,3017.5,3017.4,0.1832]
[1763451170528,0.284,3017.5,3017.4,0.6759]
[1763451170751,0.284,3017.5,3017.4,1.1706]
[1763451171262,1.481,3017.5,3017.4,1.1706]
[1763451174159,1.196,3017.5,3017.4,1.1706]
[1763451174355,1.48,3017.5,3017.4,1.37835926]
[1763451176660,0.002,3017.6,3017.4,1.37835926]
[1763451176862,0.002,3018.0,3017.6,0.90699264]
[1763451177057,0.002,3018.0,3017.9,10.32221946]
[1763451177270,1.482,3018.0,3017.9,2.29989664]
[1763451177470,1.482,3018.0,3017.5,0.405504]
[1763451177701,1.482,3018.0,3017.5,0.900204]
[1763451177702,1.48,3017.9,3017.5,0.900204]
[1763451178085,1.48,3017.9,3017.8,0.4927]
[1763451178614,0.002,3018.0,3017.8,0.4927]
[1763451178774,0.002,3018.0,3017.9,0.4927]
[1763451178978,1.482,3018.0,3017.9,0.4927]
[1763451179176,0.002,3018.0,3017.9,0.9874]
[1763451179502,1.482,3018.0,3017.9,0.9874]
[1763451180289,0.286,3018.0,3017.9,0.4927]
[1763451180512,0.286,3018.0,3016.9,1.16547461]
[1763451180513,1.6195,3018.0,3016.9,1.16547461]
[1763451180681,0.0041,3017.7,3016.7,0.4947]
[1763451180888,0.284,3017.6,3016.8,0.4947]
[1763451181109,0.002,3018.0,3017.6,0.6759]
[1763451181293,0.002,3018.0,3017.9,0.4927]
[1763451181636,0.002,3018.0,3017.9,9.44836244]
[1763451181782,1.482,3018.0,3017.9,2.29989664]
[1763451181979,1.482,3018.0,3017.9,3.49813605]
[1763451182407,0.002,3018.0,3017.9,3.53127167]
[1763451182719,1.196,3019.6,3018.3,0.405504]
[1763451182913,1.48,3019.5,3018.6,0.405504]
[1763451183106,1.48,3019.5,3018.8,0.405504]
[1763451183309,1.48,3019.5,3018.9,0.4947]
[1763451183520,0.1371,3020.0,3019.4,0.1832]
[1763451183703,0.1371,3020.0,3018.9,0.4947]
[1763451183704,1.196,3019.8,3019.1,0.1832]
[1763451184241,0.1371,3020.0,3019.1,0.1832]
[1763451184392,1.48,3019.9,3019.2,0.4947]
[1763451186631,1.6171,3019.9,3019.2,0.4947]
[1763451188244,1.6171,3019.9,3019.1,0.1832]
[1763451190248,1.6171,3019.9,3019.1,0.6427]
[1763451190422,1.6171,3019.9,3019.2,0.03312135]
[1763451190738,0.4131,3020.2,3019.2,0.4595]
[1763451190739,1.48,3019.8,3019.2,0.4595]
[1763451191109,1.48,3019.8,3019.1,0.1832]
[1763451191311,1.48,3019.8,3018.7,1.79924532]
[1763451191312,1.48,3019.8,3018.9,0.4595]
[1763451191511,0.20282,3019.7,3018.8,0.1845]
[1763451191755,0.1371,3019.9,3019.0,0.4595]
[1763451191963,1.48,3019.8,3019.0,0.4595]
[1763451193527,0.002,3020.2,3019.7,0.4537]
[1763451193528,1.198,3020.2,3019.7,0.4537]
[1763451193727,0.002,3020.2,3019.7,0.4537]
[1763451194150,0.002,3020.2,3020.1,0.6382]
[1763451194622,0.286,3020.2,3020.1,1.0977]
[1763451194827,0.286,3020.2,3020.1,1.29816926]
[1763451195157,0.002,3020.2,3020.1,1.70367326]
[1763451195362,0.286,3020.2,3020.1,1.70367326]
[1763451195659,0.002,3020.2,3020.1,1.70367326]
[1763451195834,0.286,3020.2,3020.1,1.70367326]
[1763451197694,0.286,3020.2,3020.1,0.20046926]
[1763451197832,0.002,3020.9,3020.1,2.41019664]
[1763451198031,0.002,3020.9,3020.5,10.28321946]
[1763451198340,0.002,3020.9,3020.5,10.74271946]
[1763451198537,0.002,3020.9,3020.6,1.31249664]
[1763451198870,0.002,3021.2,3020.8,0.859204]
[1763451199190,0.09083496,3023.2,3021.2,1.31249664]
[1763451199191,0.4191,3023.1,3021.2,1.31249664]
[1763451199424,0.09083496,3023.2,3021.7,1.31249664]
[1763451199425,0.5831,3022.9,3021.7,1.31249664]
[1763451199601,0.5831,3022.9,3021.3,1.13747121]
[1763451199602,0.5831,3022.9,3021.3,2.49806385]
[1763451199603,0.4191,3022.8,3021.3,2.49806385]
[1763451199779,0.4191,3022.8,3021.4,0.859104]
[1763451199977,0.50993496,3023.2,3021.7,1.31249664]
[1763451200283,0.284,3022.9,3022.1,0.90699264]
[1763451200504,0.50993496,3023.2,3022.1,0.90699264]
[1763451200704,0.284,3022.9,3021.9,0.1918]
[1763451201112,1.195,3022.8,3021.9,0.1918]
[1763451201431,1.195,3022.7,3022.1,0.90699264]
[1763451201578,1.479,3022.7,3022.2,0.98626101]
[1763451201779,1.479,3022.7,3022.2,0.1918]
[1763451202914,1.479,3022.7,3021.5,0.1918]
[1763451202915,0.4191,3022.3,3021.5,0.1918]
[1763451203118,0.1371,3023.0,3021.9,0.405504]
[1763451203119,0.1391,3023.0,3021.9,0.405504]
[1763451203416,1.479,3022.9,3021.8,8.51702282]
[1763451203577,0.60722,3022.8,3021.9,0.405504]
[1763451203782,1.8981,3022.8,3021.5,1.09879264]
[1763451204128,0.4191,3022.7,3021.6,0.405504]
[1763451204322,0.1391,3023.0,3021.5,0.1918]
[1763451204491,0.1391,3023.0,3021.7,1.34559059]
[1763451204492,2.674,3022.9,3021.7,1.34559059]
[1763451204698,0.002,3023.0,3022.1,1.31249664]
[1763451205018,0.002,3023.0,3022.4,8.51702282]
[1763451205219,0.002,3023.0,3022.5,0.94007783]
[1763451205220,1.195,3022.9,3022.5,0.94007783]
[1763451205385,0.284,3022.8,3022.5,1.39367783]
[1763451205596,0.284,3022.8,3022.4,8.51702282]
[1763451205597,0.1296,3022.6,3021.1,0.1845]
[1763451205822,0.1296,3022.6,3021.6,0.4536]
[1763451206100,0.1296,3022.6,3021.1,8.70152282]
[1763451206101,0.4162,3022.5,3021.3,0.1918]
[1763451206325,0.1296,3022.6,3021.4,0.405504]
[1763451206497,3.0931,3022.5,3021.3,0.6454]
[1763451206697,3.40241,3022.5,3021.3,0.6454]
[1763451206935,0.1391,3022.9,3021.5,0.405504]
[1763451207095,1.195,3022.4,3021.7,0.405504]
[1763451207302,1.195,3022.4,3021.6,0.405504]
[1763451207631,1.195,3022.4,3021.7,0.4536]
[1763451207833,0.1391,3022.9,3022.3,0.1918]
[1763451208034,0.1391,3022.9,3021.9,8.51702282]
[1763451208035,1.479,3022.8,3021.9,8.51702282]
[1763451208239,1.479,3022.8,3022.0,0.85170228]
[1763451208530,1.479,3022.8,3021.5,0.90699264]
[1763451208531,1.479,3022.8,3021.8,0.4536]
[1763451208730,1.479,3022.8,3020.4,1.17070643]
[1763451208731,0.4191,3022.7,3020.4,1.17070643]
[1763451208894,0.4191,3022.7,3021.0,1.09879264]
[1763451208895,1.195,3022.6,3021.0,1.09879264]
[1763451209097,1.8981,3022.7,3021.0,1.09879264]
[1763451209098,2.674,3022.5,3021.2,0.4536]
[1763451209298,0.2674,3022.4,3021.0,0.1918]
[1763451209500,0.6865,3022.4,3020.7,0.4536]
[1763451209839,0.6865,3022.4,3020.1,0.1845]
[1763451209840,0.2696,3020.8,3020.1,0.1845]
[1763451210001,0.14,3022.0,3020.7,0.4525]
[1763451210201,0.14,3022.0,3020.9,8.51702282]
[1763451210403,0.14,3022.0,3021.3,8.51702282]
[1763451210611,0.5582,3022.9,3021.7,8.51702282]
[1763451210810,0.5582,3022.9,3021.8,0.85170228]
[1763451211114,2.39,3022.8,3021.8,0.85170228]
[1763451211326,0.284,3022.7,3021.8,0.85170228]
[1763451211527,0.1391,3022.9,3021.9,0.48669176]
[1763451211763,0.284,3022.8,3022.0,0.405504]
[1763451211950,0.09083496,3023.2,3022.2,9.38622882]
[1763451212255,0.09083496,3023.2,3022.8,0.1918]
[1763451212756,0.09083496,3023.2,3022.8,0.6454]
[1763451213161,0.09083496,3023.2,3022.9,0.4536]
[1763451213366,0.286,3023.0,3022.9,0.89218481]
[1763451213578,0.286,3023.0,3022.9,0.65269775]
[1763451213727,0.286,3023.0,3022.9,0.48668081]
[1763451213922,0.286,3023.0,3022.9,0.4536]
[1763451214371,0.286,3023.0,3022.8,0.1918]
[1763451214967,0.002,3023.0,3022.9,0.9061]
[1763451215120,0.286,3023.0,3022.9,0.93918081]
[1763451215321,0.002,3023.0,3022.9,0.93918081]
[1763451215635,0.286,3023.0,3022.8,0.1918]
[1763451216257,0.284,3022.9,3022.8,0.6879]
[1763451216421,0.002,3023.0,3022.9,0.4959]
[1763451216754,0.286,3023.0,3022.9,0.992]
[1763451217156,0.002,3023.0,3022.9,0.992]
[1763451217361,0.286,3023.0,3022.9,0.992]
[1763451217652,0.286,3023.0,3022.9,0.4959]
[1763451218285,0.002,3023.0,3022.9,0.992]
[1763451218481,0.286,3023.0,3022.9,0.992]
[1763451218988,0.286,3023.0,3022.9,0.4959]
[1763451219190,0.002,3023.0,3022.9,0.992]
[1763451219384,0.286,3023.0,3022.9,0.4959]
[1763451219689,0.286,3023.0,3022.9,1.02508081]
[1763451219991,0.286,3023.0,3022.9,0.992]
[1763451220146,0.286,3023.0,3022.9,0.4959]
[1763451220347,0.286,3023.0,3022.3,0.405504]
[1763451220348,0.7051,3023.0,3022.4,0.18]
[1763451220585,0.286,3023.0,3022.4,0.18]
[1763451220760,0.002,3023.0,3022.9,0.4959]
[1763451221283,1.48,3023.0,3022.5,0.4961]
[1763451221500,1.48,3023.0,3022.4,0.18]
[1763451221501,0.1391,3022.9,3022.4,0.18]
[1763451221650,0.002,3023.0,3022.4,0.6761]
[1763451221958,0.284,3022.9,3022.4,1.58309264]
[1763451222153,1.6171,3022.9,3022.4,1.08699264]
[1763451222346,1.478,3022.9,3022.5,0.4961]
[1763451222584,0.1391,3022.8,3022.1,0.18]
[1763451222786,0.002,3023.0,3022.3,8.98072482]
[1763451222962,0.002,3023.0,3022.4,0.94007892]
[1763451223165,0.002,3023.0,3022.9,0.4959]
[1763451223369,0.002,3023.0,3022.9,1.53426175]
[1763451223370,1.48,3023.0,3022.9,1.53426175]
[1763451223564,1.48,3023.0,3022.9,2.03036175]
[1763451223987,1.48,3023.0,3022.1,0.18]
[1763451223988,1.48,3023.0,3022.4,0.4961]
[1763451224215,1.48,3023.0,3022.4,0.405504]
[1763451224362,1.48,3023.0,3022.9,0.4959]
[1763451224363,0.002,3023.0,3022.9,0.4959]
[1763451224564,1.48,3023.0,3022.9,0.4959]
[1763451224761,1.48,3023.0,3022.9,0.992]
[1763451224762,0.002,3023.0,3022.9,0.992]
[1763451224990,0.002,3023.0,3022.9,0.68579926]
[1763451224991,1.48,3023.0,3022.9,0.68579926]
[1763451225193,1.48,3023.0,3022.7,0.90699264]
[1763451225395,1.478,3022.9,3022.7,1.40309264]
[1763451225615,1.478,3022.9,3022.8,0.4961]
[1763451225808,1.478,3022.9,3022.8,0.992]
[1763451226101,0.002,3023.0,3022.9,0.405504]
[1763451226423,1.48,3023.0,3022.9,1.62795366]
[1763451227203,1.48,3023.0,3022.9,0.23044966]
[1763451227525,2.0287,3023.0,3022.1,0.18]
[1763451227805,1.617,3022.9,3022.1,0.18]
[1763451227991,1.617,3022.9,3021.8,8.98072482]
[1763451228194,0.20381,3022.8,3021.8,10.04547795]
[1763451228403,1.7467,3022.9,3021.9,0.90699264]
[1763451228769,1.194,3022.8,3022.2,8.98072482]
[1763451228979,0.1391,3022.9,3022.2,8.98072482]
[1763451229287,1.478,3022.7,3022.2,8.98072482]
[1763451229487,0.1391,3022.9,3022.3,0.91607248]
[1763451229801,0.284,3022.8,3022.3,0.91607248]
[1763451230710,0.284,3022.8,3022.0,0.4961]
[1763451230711,0.4191,3022.7,3021.9,0.405504]
[1763451231002,0.1391,3022.9,3021.9,0.405504]
[1763451231170,1.478,3022.8,3022.0,0.52919066]
[1763451231366,1.478,3022.7,3022.2,0.90699264]
[1763451231609,1.478,3022.7,3022.2,1.94868345]
[1763451231769,1.478,3022.7,3022.1,0.18]
[1763451231971,1.478,3022.7,3022.2,0.90699264]
[1763451232786,1.478,3022.7,3022.1,0.18]
[1763451232983,0.284,3022.6,3022.0,0.90699264]
[1763451233190,1.478,3022.6,3022.1,1.02932215]
[1763451233873,1.478,3022.6,3021.6,2.07769907]
[1763451233874,0.4191,3022.5,3021.6,2.07769907]
[1763451234082,0.4191,3022.5,3021.6,1.17070643]
[1763451234272,0.4191,3022.5,3021.7,0.405504]
[1763451234771,0.1391,3022.9,3021.9,8.98072482]
[1763451234772,0.5582,3022.9,3021.9,8.98072482]
[1763451235114,0.1391,3022.9,3022.0,0.901604]
[1763451235407,1.478,3022.8,3022.3,8.98072482]
[1763451235621,1.478,3022.7,3022.4,1.39417248]
[1763451235819,0.002,3023.0,3022.4,1.39417248]
[1763451235974,0.002,3023.0,3022.7,9.38622882]
[1763451235975,1.194,3022.9,3022.7,9.38622882]
[1763451236175,0.002,3023.0,3022.7,9.38622882]
[1763451236375,0.002,3023.0,3022.9,0.4959]
[1763451236606,0.002,3023.0,3022.8,1.43472288]
[1763451236607,0.286,3023.0,3022.8,0.93862288]
[1763451236779,0.002,3023.0,3022.8,0.4961]
[1763451236973,0.002,3023.0,3022.9,0.992]
[1763451237174,0.002,3023.0,3022.9,1.397504]
[1763451237175,1.196,3023.0,3022.9,1.397504]
[1763451237379,1.196,3023.0,3022.9,2.43532688]
[1763451237380,1.48,3023.0,3022.9,2.43532688]
[1763451238118,0.002,3023.0,3022.9,2.46840769]
[1763451238280,0.002,3023.0,3022.9,4.51302595]
[1763451238476,1.196,3023.0,3022.9,3.34231952]
[1763451238724,1.48,3023.0,3022.9,3.34231952]
[1763451239076,1.48,3023.0,3022.6,2.33346128]
[1763451239422,0.002,3023.0,3022.6,0.4961]
[1763451239627,0.002,3023.0,3022.9,9.88212882]
[1763451239918,1.66227376,3026.9,3023.1,0.4959]
[1763451239919,0.17306119,3024.0,3023.1,0.4959]
[1763451240210,0.14,3025.0,3023.8,1.5679171]
[1763451240211,1.478,3023.9,3023.8,1.5679171]
[1763451240396,1.478,3023.9,3023.8,0.405504]
[1763451240601,0.4572,3024.9,3023.8,0.901404]
[1763451240778,0.0908,3025.3,3024.2,0.405504]
[1763451240779,1.479,3024.8,3024.2,0.405504]
[1763451240972,0.0908,3025.3,3024.4,0.405504]
[1763451241178,1.194,3025.0,3024.6,0.405504]
[1763451241402,1.479,3025.0,3024.8,0.405504]
[1763451241600,0.8125,3025.4,3024.7,0.405504]
[1763451241601,1.479,3024.9,3024.7,0.405504]
[1763451241804,0.8125,3025.4,3025.0,0.4959]
[1763451242004,1.194,3024.8,3024.3,1.1624131]
[1763451242188,0.2319,3024.4,3023.7,0.18]
[1763451242388,1.479,3024.3,3023.7,0.21307206]
[1763451242580,1.479,3024.3,3023.1,1.1624131]
[1763451242581,0.1431,3023.8,3023.1,1.1624131]
[1763451242780,0.5935,3024.4,3022.9,1.74361965]
[1763451242781,0.0009,3023.7,3022.9,1.1624131]
[1763451243120,0.0009,3023.7,3022.7,2.23971965]
[1763451243121,0.14,3024.4,3023.3,8.98072482]
[1763451243423,0.14,3024.4,3023.7,8.98072482]
[1763451243424,2.673,3024.3,3023.7,8.98072482]
[1763451243623,0.14,3024.4,3023.8,0.03307097]
[1763451243794,0.14,3024.4,3023.7,8.98072482]
[1763451243795,0.139,3023.8,3023.1,1.1624131]
[1763451243986,0.139,3023.8,3023.1,8.98072482]
[1763451244188,0.285,3023.7,3023.2,0.03307753]
[1763451244384,0.14,3024.4,3023.5,8.98072482]
[1763451244385,0.285,3023.6,3023.5,8.98072482]
[1763451244614,0.14,3024.4,3023.5,8.98072482]
[1763451244797,0.285,3024.3,3023.1,1.03231379]
[1763451245004,0.285,3024.3,3023.2,8.98072482]
[1763451245205,0.4572,3024.2,3023.2,8.98072482]
[1763451245622,0.4572,3024.2,3023.3,0.03307643]
[1763451245789,0.4572,3024.2,3023.2,8.98072482]
[1763451245995,0.14,3024.4,3023.6,8.98072482]
[1763451246301,0.7804,3024.3,3023.6,8.98072482]
[1763451246496,0.7804,3024.3,3023.5,0.405504]
[1763451246698,0.4954,3024.9,3023.8,8.98072482]
[1763451246916,0.285,3024.8,3023.9,0.405504]
[1763451247288,0.4954,3025.5,3024.6,8.98072482]
[1763451247808,0.4954,3025.5,3024.1,0.405504]
[1763451247809,0.776,3025.0,3024.1,0.1944]
[1763451247988,0.0908,3025.8,3024.4,0.405504]
[1763451247989,0.285,3024.9,3024.4,0.405504]
[1763451248204,1.3079,3025.4,3024.3,8.98072482]
[1763451248409,0.286,3025.0,3024.3,8.98072482]
[1763451248912,0.286,3024.9,3024.2,8.98072482]
[1763451249365,0.286,3024.9,3024.0,0.4935]
[1763451249366,0.8125,3025.4,3024.8,0.4678]
[1763451249578,0.8125,3025.4,3025.0,8.98072482]
[1763451249847,0.8125,3025.4,3025.0,9.44852482]
[1763451250049,1.57635,3025.1,3025.0,9.44852482]
[1763451250267,1.29035,3025.1,3025.0,10.9362273]
[1763451250410,1.29035,3025.1,3025.0,11.3417313]
[1763451250613,1.57635,3025.1,3025.0,11.3417313]
[1763451251019,1.29035,3025.1,3025.0,11.3417313]
[1763451251310,2.76935,3025.1,3025.0,11.3417313]
[1763451252114,0.8125,3025.4,3025.1,1.31249664]
[1763451252310,0.8125,3025.4,3025.3,1.067704]
[1763451252540,1.194,3026.6,3026.3,0.405504]
[1763451252714,1.194,3026.6,3026.5,0.1944]
[1763451252923,1.479,3026.6,3026.5,0.1944]
[1763451253123,0.1876,3027.2,3026.6,0.405504]
[1763451253327,1.479,3027.1,3026.6,9.38622882]
[1763451253847,0.1876,3027.2,3026.6,9.38622882]
[1763451254050,1.479,3027.0,3026.6,8.98072482]
[1763451254219,0.1876,3027.2,3026.1,0.1944]
[1763451254220,1.194,3026.9,3026.3,9.38622882]
[1763451254420,0.285,3026.8,3026.0,0.405504]
[1763451254730,0.285,3026.8,3025.0,0.1944]
[1763451254731,0.7804,3026.8,3025.0,0.1944]
[1763451255053,0.7804,3026.8,3025.2,8.98072482]
[1763451255054,0.0541,3026.0,3025.2,8.98072482]
[1763451255219,0.491,3026.7,3025.2,8.98072482]
[1763451255421,1.478,3026.6,3025.6,8.98072482]
[1763451255669,0.1932,3025.7,3025.2,0.91751248]
[1763451255863,0.285,3025.6,3024.9,8.98072482]
[1763451257348,11.837874,3032.5,3024.3,0.90699264]
[1763451257349,0.4954,3026.3,3025.3,8.98072482]
[1763451257598,0.1391,3025.9,3025.1,8.98072482]
[1763451257796,0.6345,3025.9,3025.1,0.89807248]
[1763451257949,0.1391,3025.9,3025.1,1.61902923]
[1763451258287,0.1391,3025.9,3025.4,8.98072482]
[1763451258501,1.0,3025.6,3025.2,0.405504]
[1763451258666,1.0,3025.6,3025.0,8.98072482]
[1763451258990,1.2478,3025.6,3025.0,8.98072482]
[1763451259186,1.478,3025.5,3025.0,8.98072482]
[1763451259550,1.0,3025.6,3025.0,8.98072482]
[1763451259551,1.478,3025.4,3025.0,8.98072482]
[1763451260171,1.478,3025.3,3025.0,8.98072482]
[1763451261000,0.0929,3025.1,3023.9,9.17512482]
[1763451261201,1.0,3025.6,3024.8,8.98072482]
[1763451261509,1.0,3025.6,3025.3,0.405504]
[1763451261656,1.0,3025.6,3025.2,9.64612482]
[1763451261657,1.0,3025.6,3025.5,0.874704]
[1763451261856,2.193,3025.6,3025.5,1.36705638]
[1763451262102,2.479,3025.6,3025.5,1.334004]
[1763451262315,2.479,3025.6,3025.5,0.405504]
[1763451262596,2.479,3025.6,3025.2,0.405504]
[1763451262781,1.479,3025.5,3025.2,0.405504]
[1763451262982,1.479,3025.5,3024.9,0.405504]
[1763451263205,1.479,3025.5,3025.1,0.405504]
[1763451263582,1.0,3025.6,3025.1,1.061004]
[1763451263779,0.286,3025.4,3025.1,1.061004]
[1763451264025,0.286,3025.4,3025.1,0.601704]
[1763451264327,0.286,3025.4,3025.1,0.405504]
[1763451264507,1.0,3025.6,3025.4,0.405504]
[1763451264685,1.478,3025.5,3025.4,0.874704]
[1763451264880,1.478,3025.5,3025.4,0.405504]
[1763451265210,1.478,3025.5,3025.1,0.1962]
[1763451265585,1.0,3025.6,3025.2,0.405504]